Cogmind - Beta 10.2 @@@ ROGUE MODE // 2021.07.16 @ 01:16:35 Player: Pudding Result: Destroyed by G-34 Mercenary with Small Laser Performance ------------- Evolutions (1) 500 Regions Visited (2) 400 Robots Destroyed (29) 145 Value Destroyed (771) 771 Prototype IDs (0) 0 Alien Tech Used (0) 0 Bonus (0) 0 TOTAL SCORE: 1816 Bonus ------- None Cogmind --------- Core Integrity 0/400 Matter 229/300 Energy 9/100 System Corruption 0% Temperature Cool (12) Movement Walking (130) Location -9/Materials Parts ------- > --- POWER (1) -------- (None) > --- PROPULSION (3) --- Titanium Leg Titanium Leg > --- UTILITY (3) ------ Medium Storage Unit Targeting Computer Actuator Array > --- WEAPON (2) ------- (None) > --- INVENTORY (8) ---- Light Deuterium Engine Light Deuterium Engine Aluminum Leg Aluminum Leg Aluminum Leg Titanium Leg Small Storage Unit Peak State ------------ > --- POWER ------------ Light Deuterium Engine > --- PROPULSION ------- Titanium Leg Titanium Leg Titanium Leg > --- UTILITY ---------- Medium Storage Unit Targeting Computer Actuator Array > --- WEAPON ----------- Beam Rifle Beam Rifle > --- INVENTORY -------- Light Deuterium Engine Light Deuterium Engine Aluminum Leg Aluminum Leg Aluminum Leg Titanium Leg Small Storage Unit [Rating: 22] Favorites ----------- Power Light Ion Engine Engine Light Ion Engine Power Core Light Nuclear Core Propulsion Aluminum Leg Leg Aluminum Leg Utility Medium Storage Unit Device Heat Sink Storage Medium Storage Unit Processor Targeting Computer Protection Light Armor Plating Weapon Small Laser Energy Gun Small Laser Ballistic Gun Assault Rifle Launcher Grenade Launcher Special Weapon Mining Laser Build | -11 -10 -9 ------- Run | Scr Mat Mat Slots Evolved 2 | . . 2 Power . | . . . Propulsion 1 | . . 1 Utility 1 | . . 1 Weapon . | . . . Parts Attached 46 | 6 17 23 Power 5 | 1 3 1 Engine 4 | 1 2 1 Core 1 | . 1 . Reactor . | . . . Propulsion 17 | 2 7 8 Treads . | . . . Leg 17 | 2 7 8 Wheel . | . . . Hover . | . . . Flight . | . . . Utility 7 | 1 2 4 Device 3 | 1 1 1 Storage 1 | . 1 . Processor 1 | . . 1 Hackware . | . . . Protection 2 | . . 2 Artifact . | . . . Weapon 17 | 2 5 10 Energy Gun 11 | 1 3 7 Energy Cannon . | . . . Ballistic Gun 2 | 1 1 . Ballistic Cannon . | . . . Launcher 3 | . 1 2 Special Weapon 1 | . . 1 Impact Weapon . | . . . Slashing Weapon . | . . . Piercing Weapon . | . . . Special Melee Weapon . | . . . Unidentified Prototypes . | . . . Parts Lost 19 | . 5 14 Power 3 | . 1 2 Propulsion 2 | . . 2 Utility 3 | . 2 1 Weapon 11 | . 2 9 Highest Loss Streak 6 | . 3 6 Average Slot Usage (%) 84 | . 86 83 Engine 9 | . 8 10 Core 1 | . 4 . Leg 28 | . 28 29 Device 5 | . 7 3 Storage 10 | . 10 11 Processor 4 | . . 7 Protection 1 | . . 2 Energy Gun 12 | . 8 16 Ballistic Gun 8 | . 18 . Launcher 1 | . . 3 Naked Turns . | . . . Heaviest Build 24 | 10 18 24 Greatest Support 51 | 20 20 51 Greatest Overweight (x) 1 | . . 1 Average Overweight (x) . | . . . Largest Inventory Capacity 8 | 4 8 8 Average Capacity 7 | 4 6 8 Most Carried 8 | 4 8 8 Average Carried 5 | 3 4 7 Final Capacity 8 | 4 8 8 Final Carried 8 | 4 8 7 Class Distribution -------------------- 67% | Mutant 32% | Scavenger-Mutant Dominant Class ---------------- Mutant | -10/Materials Mutant | -9/Materials Resources | -11 -10 -9 ----------- Run | Scr Mat Mat Matter Collected 826 | 253 324 249 Remotely . | . . . Salvage Created 1025 | 40 539 446 Parts 55 | 4 26 25 Haulers Intercepted . | . . . Recyclers Shooed 2 | . 2 . Parts Field Recycled . | . . . Retrieved Matter . | . . . Parts Self-Destructed . | . . . Prevented . | . . . Kills | -11 -10 -9 ------- Run | Scr Mat Mat Combat Hostiles Destroyed 21 | 1 11 9 Guns 16 | 1 9 6 AOE 5 | . 2 3 Classes Destroyed 9 | 1 3 5 Worker 2 | . 2 . Tunneler 1 | . . 1 Recycler 3 | . 2 1 Operator 1 | . . 1 Watcher 1 | . . 1 Swarmer 3 | . 3 . Grunt 15 | 1 8 6 Brawler 1 | . . 1 Sentry 2 | . . 2 Best Kill Streak 5 | 1 5 4 Combat Bots Only 3 | 1 3 3 Max Kills in Single Turn 3 | 1 3 1 Gunslinging . | . . . Exploded 2 | . 2 1 Melee . | . . . Uniques/NPCs Destroyed . | . . . Combat | -11 -10 -9 -------- Run | Scr Mat Mat Damage Taken 2513 | 12 873 1628 Core 597 | . 196 401 Absorbed by Shields . | . . . Core Remaining (%) 60 | 100 21 . Volleys Fired 95 | 1 52 42 Largest 2 | 2 2 2 Hottest 112 | 60 70 112 Shots Fired 172 | 2 97 73 Gun 159 | 2 96 61 Cannon . | . . . Launcher 13 | . 1 12 Special . | . . . Kinetic 73 | 1 72 . Thermal 77 | . 16 61 Explosive 13 | . 1 12 Electromagnetic 9 | 1 8 . Robot Hit Streak 14 | 2 14 7 Robot Miss Streak 4 | . 4 4 Penetration Max . | . . . Secondary Targets 2 | . . 2 Max Gunslinging Chain 1 | . . 1 Shots Hit Robots 121 | 2 67 52 Core Hits 56 | 2 27 27 Critical Hits 1 | . 1 . Critical Kills 1 | . 1 . Critical Parts Destroyed . | . . . Melee Attacks . | . . . Impact . | . . . Slashing . | . . . Piercing . | . . . Sneak Attacks . | . . . Combat Hostiles . | . . . Follow-up Attacks . | . . . Damage Inflicted 1837 | 27 849 961 Guns 1310 | 27 760 523 Cannons . | . . . Explosions 509 | . 89 420 Melee . | . . . Ramming 18 | . . 18 Kinetic 561 | 14 547 . Thermal 634 | . 111 523 Explosive 509 | . 89 420 Electromagnetic 115 | 13 102 . Impact . | . . . Slashing . | . . . Piercing . | . . . Highest Corruption . | . . . Average Corruption . | . . . Corruption Purged . | . . . Overload Shots . | . . . Overflow Damage 10 | . . 10 Projectiles . | . . . Explosions 10 | . . 10 Melee . | . . . Knockbacks . | . . . Impact . | . . . Kinetic . | . . . Secondary . | . . . Self-Inflicted Damage 333 | . 27 306 Shots 9 | . 1 8 Rammed 1 | . . 1 Targets Rammed 4 | . . 4 Kicked 3 | . . 3 Crushed . | . . . Highest Temperature 461 | . 196 461 Average Temperature 154 | . 89 182 Received Heat Transfer 939 | 6 351 582 Effects 9 | . . 9 Shutdowns 3 | . . 3 Interference 2 | . . 2 Matter Decay 1 | . . 1 Damage (major) 3 | . . 3 Siege Activations . | . . . Robots Corrupted . | . . . Combat Hostiles . | . . . Parts Fried . | . . . Impact Corruptions . | . . . Robots Melted . | . . . Combat Hostiles . | . . . Parts Melted . | . . . Heat Transferred 1610 | . 333 1277 Parts Sabotaged . | . . . Parts Stolen . | . . . Parts Stripped . | . . . Power Chain Reactions . | . . . Missiles Intercepted . | . . . Alert | -11 -10 -9 ------- Run | Scr Mat Mat Peak Influence 313 | 20 313 222 Initial 72 | . 13 72 Average 122 | 6 161 113 Maximum Alert Level 1 | . 1 1 Low Security (%) 80 | 100 70 85 Level 1 19 | . 29 14 Level 2 . | . . . Level 3 . | . . . Level 4 . | . . . Level 5 . | . . . High Security . | . . . Max Security . | . . . Squads Dispatched 4 | . 3 1 Investigation 1 | . 1 . Extermination . | . . . Reinforcement 3 | . 2 1 Assault . | . . . Garrison . | . . . Intercept . | . . . Construction Impeded . | . . . Haulers Reinforced . | . . . Stealth | -11 -10 -9 --------- Run | Scr Mat Mat Distress Signals 3 | . 2 1 Communications Jammed . | . . . Distress Signals . | . . . Times Spotted 37 | 1 20 16 Peak Tracking Total 5 | 1 5 4 Tactical Retreats 4 | . 3 1 Traps | -11 -10 -9 ------- Run | Scr Mat Mat Traps Triggered 2 | . 2 . Indirectly . | . . . Trap Hack Attempts . | . . . Triggered . | . . . Disarmed . | . . . Reprogrammed . | . . . Reused . | . . . Traps Extracted . | . . . Installed . | . . . Triggered . | . . . Machines | -11 -10 -9 ---------- Run | Scr Mat Mat Machines Disabled 2 | . . 2 Max in Single Turn 1 | . . 1 Machines Sabotaged . | . . . Garrisons Compromised . | . . . Overloaded Fab Kills . | . . . Fab Network Shutdowns . | . . . Hacking | -11 -10 -9 --------- Run | Scr Mat Mat Machines Accessed . | . . . Terminals . | . . . Fabricators . | . . . Repair Stations . | . . . Recycling Units . | . . . Scanalyzers . | . . . Garrison Access . | . . . Total Hacks . | . . . Successful . | . . . Failed . | . . . Catastrophic . | . . . Database Lockouts . | . . . Manual . | . . . Terminals . | . . . Fabricators . | . . . Repair Stations . | . . . Recycling Units . | . . . Scanalyzers . | . . . Garrison Access . | . . . Terminal Hacks . | . . . Fabricator Hacks . | . . . Repair Station Hacks . | . . . Recycling Unit Hacks . | . . . Scanalyzer . | . . . Garrison Access Hacks . | . . . Unauthorized Hacks . | . . . Terminals . | . . . Fabricators . | . . . Repair Stations . | . . . Recycling Units . | . . . Scanalyzers . | . . . Garrison Access . | . . . Data Cores Recovered . | . . . Used . | . . . Hacking Detections . | . . . Full Trace Events . | . . . Feedback Events . | . . . Feedback Blocked . | . . . Robot Schematics Acquired . | . . . Robots Built . | . . . Matter . | . . . Time . | . . . Total Robot Build Rating . | . . . Part Schematics Acquired . | . . . Parts Built . | . . . Matter . | . . . Time . | . . . Total Part Build Rating . | . . . Parts Repaired . | . . . Time . | . . . Parts Recycled . | . . . Recycled Matter . | . . . Retrieved Matter . | . . . Retrieved Components . | . . . Parts Scanalyzed . | . . . Part Schematics Acquired . | . . . Parts Damaged . | . . . Bothacking | -11 -10 -9 ------------ Run | Scr Mat Mat Used RIF Installer . | . . . Robots Hacked . | . . . Non-combat . | . . . Combat . | . . . Robot Hacks Applied . | . . . Relay Couplers Released . | . . . Robots Rewired . | . . . Allies Hacked . | . . . Hacks Repelled . | . . . Allies | -11 -10 -9 -------- Run | Scr Mat Mat Total Allies . | . . . Largest Group . | . . . Highest-Rated Group . | . . . Highest-Rated Ally . | . . . Total Orders . | . . . Ally Attacks . | . . . Total Damage . | . . . Kills . | . . . Allies Corrupted . | . . . Allies Melted . | . . . Intel | -11 -10 -9 ------- Run | Scr Mat Mat Robot Analysis Total . | . . . Derelict Logs Recovered . | . . . Drone Launches . | . . . Drone Recoveries . | . . . Exploration | -11 -10 -9 ------------- Run | Scr Mat Mat Turns Passed 1174 | 113 479 582 Spaces Moved 626 | 87 237 302 Core 14 | 14 . . Treads . | . . . Legs 612 | 73 237 302 Wheels . | . . . Hover . | . . . Flight . | . . . Fastest Speed 50 | 50 120 120 Average Speed 120 | 108 120 124 Slowest Speed 160 | 120 120 160 Overloaded Moves . | . . . Propulsion Burnouts . | . . . Robots Hopped . | . . . Cave-ins Triggered . | . . . Exploration Rate (%) 20 | 8 34 20 Regions Visited 2 Branch Regions . Pre-discovered Areas . | . . . Known Exits Taken . | . . . Unknown Exits Taken 2 | 1 1 . Scrap Searched . | . . . Spaces Dug . | . . . Terrain Destroyed 61 | . 4 57 Melee . | . . . Projectile . | . . . AOE 61 | . 4 57 Terrain Rammed . | . . . Walls Destroyed . | . . . Machines Disabled . | . . . Actions | -11 -10 -9 --------- Run | Scr Mat Mat Total 874 | 101 337 436 Wait 57 | . 14 43 Move 624 | 86 236 302 Hop . | . . . Pick Up 24 | 6 8 10 Fast Attach 21 | 6 6 9 Attach 8 | . 3 5 Detach 1 | . 1 . Swap 17 | . 8 9 Drop 23 | 2 9 12 Fire 95 | 1 52 42 Melee . | . . . Ram . | . . . Kick 4 | . . 4 Crush . | . . . Escape Stasis . | . . . Rewire . | . . . Trap . | . . . Miscellaneous . | . . . Route ------- -11/Scrapyard -10/Materials -9/Materials History --------- Turn | Location | Event 2 | -11/Scrapyard | Met Revision 17 70 | -11/Scrapyard | Discovered new exit (range 8) 114 | -11/Scrapyard | Entered Materials 304 | -10/Materials | Build established: Mutant 503 | -10/Materials | Discovered new exit (range 10) 528 | -10/Materials | Core integrity fell below 50% 578 | -10/Materials | Lost 3 parts (1p1u1w) 593 | -10/Materials | Entered another Materials area 593 | -9/Materials | Evolved 2 slots: Propulsion x1, Utility x1 675 | -9/Materials | Build established: Scavenger-Mutant 809 | -9/Materials | Lost 4 parts (1n3w) 920 | -9/Materials | Core integrity fell below 50% 1056 | -9/Materials | Build established: Mutant 1166 | -9/Materials | Core integrity fell below 20% 1175 | -9/Materials | Destroyed by G-34 Mercenary with Small Laser Last Messages --------------- Overheating: Beam Rifle damaged (-9). Overheating: Beam Rifle damaged (-8). Power failure, Lgt. Deuterium Engine shutdown. Beam Rifle destroyed. Overheating: Matter decay (-22). Destroyed Sml. Laser. Critical hit. Beam Rifle destroyed. Power failure, Lgt. Deuterium Engine shutdown. Kicked L-31 Rogue out of the way. Acquired 29 matter. Acquired Mining Laser. Acquired 21 matter. Slammed into L-31 Rogue. Kicked L-31 Rogue out of the way. Lgt. Deuterium Engine destroyed. Kicked L-31 Rogue out of the way. Mining Laser destroyed. Sml. Laser destroyed. Titanium Leg destroyed. Map ----- +----------------------------------------------------+ | ???????????????????????????????????????????????? | | ???????????????????????????????????????????????? | | ???????????????????????????????????????????????? | | ???????????????????????????????????????????????? | | ???????????????????????????????????????????????? | | ???????????????????????????????????????????????? | | ???????????????????????????????????????????????? | | ???????????????????????????????????????????????? | | ???????????????????????????????????????????????? | | ???????????????????????????????????????????????? | | ???????????????????????????????????????????????? | | ???????????????????????????????????????????????? | | ???????????????????????????????????????????????? | | ???????????????????????????????????????????????? | | ???????????????????????????????????????????????? | | ?????????????????????????????????????#?????????? | | ???????????????????????????????????? ???????? | | ??????????????????????????????????? ????????? | | ??????????????????????????????????? "????????? | | ?????????????????????????????????? ?????????? | | ????????????????????????????###+## ??????????? | | ????????????????????????????# ???????????? | | ???????????????????########## ????????????? | | ???????????????????# # ?????????????? | | ???????????????????# # #??????????????? | | ???????????????????# @ # #??????????????? | | ???????????????????# l # +??????????????? | | ???????????????????# g/ #??????????????? | | ???????????????????# g# #??????????????? | | ???????????????????# # #??????????????? | | ???????????????????# # #??????????????? | | ???????????????????# # #??????????????? | | ???????????????????########## #??????????????? | | ??????????????????#########?#! #??????????????? | | ??????????????????# # ! #########??????? | | ??????????????????# # # !! #??????? | | ??????????????????# ] +!%=+ ! #??????? | | ??????????????????# #!= # #??????? | | ??????????????????#######+###!%*#########??????? | | ???????????????????????????# [#?????????????? | | ???????????????????????????# " =#?????????????? | | ?????????????????????????? + "T #?????????????? | | ?????????????????????????" # #?????????????? | | ????????????????????????"" # #?????????????? | | ????????????????????????""?### ###?????????????? | | ???????????????????????? ???# #???????????????? | | ???????????????????????#+#?### ###?????????????? | | ???????????????????????# #?# #?????????????? | | ???????????????????????# #?# ##########????? | | ???????????????????????# #?# #????? | +----------------------------------------------------+ Best States ------------- Heat Dissipation 35 Energy Generation 14 Energy Capacity 250 Matter Stores 300 Matter Capacity 300 Sight Range 16 Terrain Scan Density 10 Armor Coverage 150 Evasion (%) 50 Targeting Accuracy 5 Item Schematics ----------------- None Robot Schematics ------------------ None Fabricated ------------ Nothing Alien Tech Used ----------------- None Achievements -------------- None Challenges ------------ None Game ------ Seed BottomlessDecoderCycler Manual? 0 Play Time 00:18:18 Cumulative 4.3 hours Start 2021.07.16 @ 00:56:32 End 2021.07.16 @ 01:16:35 Sessions 1 Manual Loads 0 Difficulty Rogue Special Mode None Game No. 4 Rogue 4 Adventurer 0 Explorer 0 Win Type - Total 0 Types 0/0/0/0/0/0/0/0/0 Lore% 7 Gallery% 10 Achievement% 8 Wizard Run 0 Options --------- ASCII 0 Keyboard 1 Movement Numpad Keybinds 0 Fullscreen 2 Font 24/Smallcaps Map View 76x50 Tactical HUD 0 Map Filters NONE Filters NONE Steam 0 RUN: f45e8c18-623b-4fed-8e3e-f15bbd5cff5e